[Event "Titled Tuesday Blitz June 20 Early 2023"]
[White "Zheenbekov, Nurgazy"]
[Black "Brueckner, Thomas"]
[WhiteFideId "13800485"]
[BlackFideId "4600452"]
[WhiteElo "1975"]
[BlackElo "2319"]
[Result "0-1"]
[Round "10"]
[TimeControl "180+2"]
[Date "2023.06.20"]
[WhiteClock "0:00:00"]
[BlackClock "0:00:24"]
[Board "110"]

1. Nf3 {[%clk 0:03:00]}  d5 {[%clk 0:02:59]} 2. g3 {[%clk 0:02:59]}  c5 {[%clk 0:02:58]} 3. Bg2 {[%clk 0:02:59]}  Nc6 {[%clk 0:02:58]} 4. O-O {[%clk 0:02:59]}  e6 {[%clk 0:02:58]} 5. d3 {[%clk 0:03:00]}  Nf6 {[%clk 0:02:58]} 6. Nbd2 {[%clk 0:03:00]}  Be7 {[%clk 0:02:58]} 7. e4 {[%clk 0:03:00]}  Qc7 {[%clk 0:02:57]} 8. Re1 {[%clk 0:03:00]}  b6 {[%clk 0:02:57]} 9. Qe2 {[%clk 0:03:00]}  Bb7 {[%clk 0:02:57]} 10. e5 {[%clk 0:03:00]}  Nd7 {[%clk 0:02:57]} 11. c3 {[%clk 0:03:00]}  g5 {[%clk 0:02:49]} 12. h3 {[%clk 0:03:00]}  O-O-O {[%clk 0:02:49]} 13. Nf1 {[%clk 0:02:59]}  Rdg8 {[%clk 0:02:46]} 14. a3 {[%clk 0:02:56]}  h5 {[%clk 0:02:45]} 15. g4 {[%clk 0:02:49]}  hxg4 {[%clk 0:02:44]} 16. hxg4 {[%clk 0:02:49]}  Nf8 {[%clk 0:02:36]} 17. b4 {[%clk 0:02:48]}  Ng6 {[%clk 0:02:35]} 18. b5 {[%clk 0:02:35]}  Na5 {[%clk 0:02:32]} 19. N3h2 {[%clk 0:02:26]}  Nb3 {[%clk 0:02:21]} 20. Rb1 {[%clk 0:02:25]}  Nxc1 {[%clk 0:02:20]} 21. Rbxc1 {[%clk 0:02:25]}  Nf4 {[%clk 0:02:15]} 22. Qf3 {[%clk 0:02:25]}  Nxg2 {[%clk 0:02:14]} 23. Qxg2 {[%clk 0:02:24]}  d4 {[%clk 0:02:09]} 24. Qg3 {[%clk 0:02:22]}  dxc3 {[%clk 0:02:04]} 25. Rxc3 {[%clk 0:02:21]}  Rh4 {[%clk 0:01:57]} 26. f3 {[%clk 0:01:54]}  Rgh8 {[%clk 0:01:51]} 27. Re2 {[%clk 0:01:53]}  Rh3 {[%clk 0:01:46]} 28. Qe1 {[%clk 0:01:52]}  Kb8 {[%clk 0:01:45]} 29. Ng3 {[%clk 0:01:44]}  Qd7 {[%clk 0:01:40]} 30. Nh5 {[%clk 0:01:31]}  Qd4+ {[%clk 0:01:33]} 31. Kg2 {[%clk 0:01:31]}  Rxh2+ {[%clk 0:01:04]} 32. Kxh2 {[%clk 0:01:30]}  Bxf3 {[%clk 0:01:04]} 33. Re4 {[%clk 0:01:23]}  Bxe4 {[%clk 0:01:01]} 34. dxe4 {[%clk 0:01:23]}  Qxe5+ {[%clk 0:01:01]} 35. Kg2 {[%clk 0:01:23]}  Rd8 {[%clk 0:01:00]} 36. Rf3 {[%clk 0:01:17]}  f6 {[%clk 0:00:57]} 37. Ng3 {[%clk 0:01:11]}  c4 {[%clk 0:00:54]} 38. a4 {[%clk 0:01:09]}  Bc5 {[%clk 0:00:50]} 39. a5 {[%clk 0:01:08]}  bxa5 {[%clk 0:00:46]} 40. b6 {[%clk 0:00:49]}  Bxb6 {[%clk 0:00:46]} 41. Nh5 {[%clk 0:00:46]}  Rd3 {[%clk 0:00:43]} 42. Qe2 {[%clk 0:00:31]}  Rxf3 {[%clk 0:00:41]} 43. Kxf3 {[%clk 0:00:29]}  Qc3+ {[%clk 0:00:38]} 44. Kg2 {[%clk 0:00:28]}  Qd4 {[%clk 0:00:35]} 45. Qf3 {[%clk 0:00:23]}  c3 {[%clk 0:00:32]} 46. Nxf6 {[%clk 0:00:22]}  c2 {[%clk 0:00:30]} 47. Qa3 {[%clk 0:00:18]}  Qg1+ {[%clk 0:00:26]} 48. Kh3 {[%clk 0:00:18]}  Qh1+ {[%clk 0:00:26]} 49. Kg3 {[%clk 0:00:17]}  Bc7+ {[%clk 0:00:25]} 50. e5 {[%clk 0:00:14]}  Bxe5+ {[%clk 0:00:25]} 51. Kf2 {[%clk 0:00:00]}  Qh2+ {[%clk 0:00:24]} 0-1


[Site "https://www.chess.com"]

[Event "Titled Tuesday Blitz June 20 Early 2023"]
[White "Kuzmin, Ilya"]
[Black "Gomez Barrera, Javiera Belen"]
[WhiteFideId "4153863"]
[BlackFideId "3418723"]
[WhiteElo "2093"]
[BlackElo "2119"]
[Result "0-1"]
[Round "10"]
[TimeControl "180+2"]
[Date "2023.06.20"]
[WhiteClock "0:00:19"]
[BlackClock "0:00:08"]
[Board "111"]

1. d4 {[%clk 0:03:00]}  Nf6 {[%clk 0:02:57]} 2. c4 {[%clk 0:03:01]}  e6 {[%clk 0:02:57]} 3. Nf3 {[%clk 0:03:00]}  d5 {[%clk 0:02:58]} 4. cxd5 {[%clk 0:03:00]}  exd5 {[%clk 0:02:59]} 5. Qc2 {[%clk 0:03:00]}  g6 {[%clk 0:02:53]} 6. Bf4 {[%clk 0:02:53]}  c6 {[%clk 0:02:53]} 7. e3 {[%clk 0:02:53]}  Bf5 {[%clk 0:02:53]} 8. Bd3 {[%clk 0:02:53]}  Bxd3 {[%clk 0:02:53]} 9. Qxd3 {[%clk 0:02:53]}  Bd6 {[%clk 0:02:50]} 10. Bh6 {[%clk 0:02:45]}  Bf8 {[%clk 0:02:47]} 11. Bg5 {[%clk 0:02:43]}  h6 {[%clk 0:02:44]} 12. Bh4 {[%clk 0:02:40]}  Be7 {[%clk 0:02:43]} 13. Nc3 {[%clk 0:02:40]}  Nbd7 {[%clk 0:02:43]} 14. O-O {[%clk 0:02:36]}  O-O {[%clk 0:02:39]} 15. b4 {[%clk 0:02:26]}  Re8 {[%clk 0:02:35]} 16. b5 {[%clk 0:02:22]}  Ne4 {[%clk 0:02:22]} 17. Nxe4 {[%clk 0:02:13]}  dxe4 {[%clk 0:02:20]} 18. Qxe4 {[%clk 0:02:12]}  Bxh4 {[%clk 0:01:50]} 19. Qxh4 {[%clk 0:02:12]}  Qxh4 {[%clk 0:01:49]} 20. Nxh4 {[%clk 0:02:13]}  cxb5 {[%clk 0:01:49]} 21. Rab1 {[%clk 0:02:13]}  a6 {[%clk 0:01:48]} 22. a4 {[%clk 0:02:13]}  Nb6 {[%clk 0:01:40]} 23. axb5 {[%clk 0:02:12]}  a5 {[%clk 0:01:40]} 24. Nf3 {[%clk 0:02:09]}  a4 {[%clk 0:01:41]} 25. Ne5 {[%clk 0:02:08]}  a3 {[%clk 0:01:38]} 26. Nd3 {[%clk 0:01:45]}  Rec8 {[%clk 0:01:37]} 27. Nc5 {[%clk 0:01:45]}  Na4 {[%clk 0:01:30]} 28. Nxb7 {[%clk 0:01:38]}  Nc3 {[%clk 0:01:28]} 29. Ra1 {[%clk 0:01:37]}  Nxb5 {[%clk 0:01:06]} 30. g3 {[%clk 0:01:27]}  Rc2 {[%clk 0:01:04]} 31. Nc5 {[%clk 0:01:26]}  Nc3 {[%clk 0:01:02]} 32. Kg2 {[%clk 0:01:16]}  a2 {[%clk 0:01:01]} 33. Kf3 {[%clk 0:01:13]}  Rb8 {[%clk 0:01:00]} 34. Ne4 {[%clk 0:01:09]}  Nd5 {[%clk 0:00:33]} 35. Nc5 {[%clk 0:00:56]}  Rbb2 {[%clk 0:00:30]} 36. e4 {[%clk 0:00:53]}  Nc3 {[%clk 0:00:27]} 37. Kg2 {[%clk 0:00:44]}  Rb1 {[%clk 0:00:25]} 38. Nd3 {[%clk 0:00:41]}  Rxf1 {[%clk 0:00:22]} 39. Kxf1 {[%clk 0:00:41]}  Rd2 {[%clk 0:00:19]} 40. Nb4 {[%clk 0:00:39]}  Rb2 {[%clk 0:00:19]} 41. Nxa2 {[%clk 0:00:36]}  Nxa2 {[%clk 0:00:19]} 42. d5 {[%clk 0:00:34]}  Kf8 {[%clk 0:00:19]} 43. h4 {[%clk 0:00:34]}  Nc3 {[%clk 0:00:19]} 44. Re1 {[%clk 0:00:32]}  Ke7 {[%clk 0:00:19]} 45. e5 {[%clk 0:00:32]}  Nxd5 {[%clk 0:00:19]} 46. Kg2 {[%clk 0:00:31]}  Rb3 {[%clk 0:00:16]} 47. h5 {[%clk 0:00:31]}  g5 {[%clk 0:00:16]} 48. Kh3 {[%clk 0:00:31]}  Rf3 {[%clk 0:00:14]} 49. Kg2 {[%clk 0:00:31]}  Rf5 {[%clk 0:00:14]} 50. f3 {[%clk 0:00:28]}  Ke6 {[%clk 0:00:12]} 51. Rb1 {[%clk 0:00:28]}  Rxe5 {[%clk 0:00:12]} 52. Rb7 {[%clk 0:00:27]}  Kf6 {[%clk 0:00:11]} 53. Rd7 {[%clk 0:00:26]}  Ne3+ {[%clk 0:00:09]} 54. Kf2 {[%clk 0:00:26]}  Nf5 {[%clk 0:00:09]} 55. Rc7 {[%clk 0:00:25]}  Re6 {[%clk 0:00:07]} 56. Rc5 {[%clk 0:00:24]}  Ne7 {[%clk 0:00:06]} 57. Ra5 {[%clk 0:00:23]}  Rc6 {[%clk 0:00:06]} 58. Ra7 {[%clk 0:00:23]}  Rc2+ {[%clk 0:00:07]} 59. Kg1 {[%clk 0:00:23]}  Nf5 {[%clk 0:00:07]} 60. Ra6+ {[%clk 0:00:23]}  Kg7 {[%clk 0:00:07]} 61. g4 {[%clk 0:00:22]}  Nh4 {[%clk 0:00:08]} 62. Ra3 {[%clk 0:00:21]}  Kf6 {[%clk 0:00:08]} 63. Kf1 {[%clk 0:00:20]}  Ke5 {[%clk 0:00:09]} 64. Ke1 {[%clk 0:00:21]}  Kf4 {[%clk 0:00:09]} 65. Kd1 {[%clk 0:00:21]}  Rc6 {[%clk 0:00:08]} 66. Ra6 {[%clk 0:00:19]}  Rxa6 {[%clk 0:00:08]} 0-1


[Site "https://www.chess.com"]

[Event "Titled Tuesday Blitz June 20 Early 2023"]
[White "Rosh Jain"]
[Black "Sai Han Thiha"]
[WhiteFideId "25789465"]
[BlackFideId "13012290"]
[WhiteElo "2233"]
[BlackElo "1953"]
[Result "0-1"]
[Round "10"]
[TimeControl "180+2"]
[Date "2023.06.20"]
[WhiteClock "0:01:05"]
[BlackClock "0:00:36"]
[Board "112"]

1. e4 {[%clk 0:03:00]}  c6 {[%clk 0:03:00]} 2. Nc3 {[%clk 0:03:00]}  d5 {[%clk 0:03:01]} 3. Nf3 {[%clk 0:03:00]}  Bg4 {[%clk 0:03:01]} 4. h3 {[%clk 0:02:59]}  Bxf3 {[%clk 0:03:02]} 5. Qxf3 {[%clk 0:03:00]}  e6 {[%clk 0:03:03]} 6. Be2 {[%clk 0:02:59]}  Nf6 {[%clk 0:02:58]} 7. O-O {[%clk 0:02:58]}  Be7 {[%clk 0:02:54]} 8. Rd1 {[%clk 0:02:58]}  d4 {[%clk 0:02:51]} 9. Nb1 {[%clk 0:02:57]}  O-O {[%clk 0:02:25]} 10. d3 {[%clk 0:02:55]}  e5 {[%clk 0:02:25]} 11. Qg3 {[%clk 0:02:53]}  Nfd7 {[%clk 0:02:22]} 12. f4 {[%clk 0:02:52]}  Bh4 {[%clk 0:02:04]} 13. Qg4 {[%clk 0:02:51]}  h6 {[%clk 0:01:52]} 14. f5 {[%clk 0:02:50]}  Bg5 {[%clk 0:01:52]} 15. Nd2 {[%clk 0:02:40]}  Be3+ {[%clk 0:01:51]} 16. Kh1 {[%clk 0:02:40]}  Qg5 {[%clk 0:01:52]} 17. Qf3 {[%clk 0:02:40]}  Qf4 {[%clk 0:01:48]} 18. Qxf4 {[%clk 0:02:38]}  exf4 {[%clk 0:01:38]} 19. Nf3 {[%clk 0:02:37]}  c5 {[%clk 0:01:39]} 20. b4 {[%clk 0:02:32]}  b6 {[%clk 0:01:32]} 21. bxc5 {[%clk 0:02:32]}  bxc5 {[%clk 0:01:33]} 22. Rb1 {[%clk 0:02:31]}  Nc6 {[%clk 0:01:31]} 23. Rb7 {[%clk 0:02:31]}  Rfd8 {[%clk 0:01:23]} 24. Ba3 {[%clk 0:02:31]}  a5 {[%clk 0:01:15]} 25. Rdb1 {[%clk 0:02:14]}  Nb4 {[%clk 0:01:14]} 26. Bxb4 {[%clk 0:02:13]}  axb4 {[%clk 0:01:14]} 27. Ra1 {[%clk 0:02:13]}  f6 {[%clk 0:01:08]} 28. Kh2 {[%clk 0:02:04]}  Ra3 {[%clk 0:01:08]} 29. g3 {[%clk 0:02:02]}  Ne5 {[%clk 0:00:57]} 30. Nxe5 {[%clk 0:02:02]}  fxe5 {[%clk 0:00:58]} 31. Re7 {[%clk 0:01:53]}  fxg3+ {[%clk 0:00:55]} 32. Kxg3 {[%clk 0:01:52]}  Rda8 {[%clk 0:00:55]} 33. Rxe5 {[%clk 0:01:51]}  Rxa2 {[%clk 0:00:51]} 34. Rxa2 {[%clk 0:01:52]}  Rxa2 {[%clk 0:00:52]} 35. Rxc5 {[%clk 0:01:52]}  b3 {[%clk 0:00:52]} 36. Rc8+ {[%clk 0:01:46]}  Kh7 {[%clk 0:00:53]} 37. Bh5 {[%clk 0:01:46]}  g5 {[%clk 0:00:46]} 38. f6 {[%clk 0:01:14]}  Rxc2 {[%clk 0:00:43]} 39. Rb8 {[%clk 0:01:14]}  Bf4+ {[%clk 0:00:36]} 40. Kf3 {[%clk 0:01:09]}  Bxb8 {[%clk 0:00:36]} 41. f7 {[%clk 0:01:05]}  Kg7 {[%clk 0:00:36]} 0-1


[Site "https://www.chess.com"]

[Event "Titled Tuesday Blitz June 20 Early 2023"]
[White "Herzog2012"]
[Black "De Souza, Cristiano Gomes"]
[BlackFideId "2151758"]
[WhiteElo "2431"]
[BlackElo "2068"]
[Result "1-0"]
[Round "10"]
[TimeControl "180+2"]
[Date "2023.06.20"]
[WhiteClock "0:00:06"]
[BlackClock "0:01:42"]
[Board "114"]

1. e4 {[%clk 0:03:00]}  c5 {[%clk 0:02:59]} 2. Nf3 {[%clk 0:03:01]}  d6 {[%clk 0:03:00]} 3. d4 {[%clk 0:03:01]}  cxd4 {[%clk 0:03:00]} 4. Nxd4 {[%clk 0:03:02]}  Nf6 {[%clk 0:03:01]} 5. Nc3 {[%clk 0:03:03]}  g6 {[%clk 0:03:01]} 6. Be3 {[%clk 0:03:03]}  Bg7 {[%clk 0:03:02]} 7. f3 {[%clk 0:03:03]}  O-O {[%clk 0:03:02]} 8. Qd2 {[%clk 0:03:04]}  Nc6 {[%clk 0:03:03]} 9. O-O-O {[%clk 0:03:04]}  d5 {[%clk 0:03:03]} 10. Nxc6 {[%clk 0:03:04]}  bxc6 {[%clk 0:03:03]} 11. Bh6 {[%clk 0:03:04]}  Qa5 {[%clk 0:03:01]} 12. Bxg7 {[%clk 0:02:41]}  Kxg7 {[%clk 0:03:02]} 13. h4 {[%clk 0:02:28]}  dxe4 {[%clk 0:03:00]} 14. Qg5 {[%clk 0:02:25]}  Qxg5+ {[%clk 0:02:55]} 15. hxg5 {[%clk 0:02:24]}  Nh5 {[%clk 0:02:55]} 16. Nxe4 {[%clk 0:02:21]}  Bf5 {[%clk 0:02:55]} 17. Rh4 {[%clk 0:01:54]}  Bxe4 {[%clk 0:02:54]} 18. Rxe4 {[%clk 0:01:55]}  Ng3 {[%clk 0:02:49]} 19. Rxe7 {[%clk 0:01:49]}  Rfe8 {[%clk 0:02:48]} 20. Rxe8 {[%clk 0:01:46]}  Rxe8 {[%clk 0:02:47]} 21. Bc4 {[%clk 0:01:46]}  Re7 {[%clk 0:02:38]} 22. Rd6 {[%clk 0:01:26]}  Re1+ {[%clk 0:02:26]} 23. Kd2 {[%clk 0:01:22]}  Rg1 {[%clk 0:02:27]} 24. Rd7 {[%clk 0:00:55]}  Rxg2+ {[%clk 0:02:27]} 25. Kd3 {[%clk 0:00:40]}  h6 {[%clk 0:02:21]} 26. Rxf7+ {[%clk 0:00:38]}  Kh8 {[%clk 0:02:20]} 27. gxh6 {[%clk 0:00:34]}  Nf5 {[%clk 0:02:19]} 28. Rxa7 {[%clk 0:00:28]}  Nxh6 {[%clk 0:02:09]} 29. Rc7 {[%clk 0:00:25]}  Rf2 {[%clk 0:02:09]} 30. Rxc6 {[%clk 0:00:23]}  Rxf3+ {[%clk 0:02:07]} 31. Ke4 {[%clk 0:00:23]}  Rg3 {[%clk 0:02:04]} 32. a4 {[%clk 0:00:19]}  Nf5 {[%clk 0:02:02]} 33. a5 {[%clk 0:00:12]}  Rg1 {[%clk 0:01:59]} 34. a6 {[%clk 0:00:11]}  Kg7 {[%clk 0:02:00]} 35. a7 {[%clk 0:00:07]}  Ra1 {[%clk 0:01:59]} 36. Ra6 {[%clk 0:00:07]}  Nd6+ {[%clk 0:01:53]} 37. Kd5 {[%clk 0:00:03]}  Rxa6 {[%clk 0:01:47]} 38. Bxa6 {[%clk 0:00:03]}  Nf5 {[%clk 0:01:46]} 39. a8=Q {[%clk 0:00:03]}  Kf6 {[%clk 0:01:44]} 40. Qf8+ {[%clk 0:00:02]}  Kg5 {[%clk 0:01:45]} 41. Ke5 {[%clk 0:00:03]}  Nh4 {[%clk 0:01:44]} 42. Qf6+ {[%clk 0:00:04]}  Kh5 {[%clk 0:01:44]} 43. Qxh4+ {[%clk 0:00:05]}  Kxh4 {[%clk 0:01:44]} 44. Bc8 {[%clk 0:00:06]}  g5 {[%clk 0:01:45]} 45. b4 {[%clk 0:00:06]}  g4 {[%clk 0:01:46]} 46. Bxg4 {[%clk 0:00:06]}  Kxg4 {[%clk 0:01:42]} 47. b5 {[%clk 0:00:06]} 1-0


[Site "https://www.chess.com"]

[Event "Titled Tuesday Blitz June 20 Early 2023"]
[White "Srdanovic, Jovana"]
[Black "Petrova, Irina"]
[WhiteFideId "954810"]
[BlackFideId "14124122"]
[WhiteElo "2155"]
[BlackElo "2084"]
[Result "0-1"]
[Round "10"]
[TimeControl "180+2"]
[Date "2023.06.20"]
[WhiteClock "0:00:03"]
[BlackClock "0:01:23"]
[Board "119"]

1. d4 {[%clk 0:02:56]}  d6 {[%clk 0:03:00]} 2. c4 {[%clk 0:02:55]}  e5 {[%clk 0:03:00]} 3. d5 {[%clk 0:02:55]}  Be7 {[%clk 0:03:00]} 4. e4 {[%clk 0:02:56]}  a5 {[%clk 0:03:00]} 5. Nc3 {[%clk 0:02:56]}  Na6 {[%clk 0:03:01]} 6. Bd3 {[%clk 0:02:42]}  Nc5 {[%clk 0:03:01]} 7. Bc2 {[%clk 0:02:41]}  Nf6 {[%clk 0:03:01]} 8. h3 {[%clk 0:02:27]}  O-O {[%clk 0:02:59]} 9. Nge2 {[%clk 0:02:25]}  h6 {[%clk 0:02:57]} 10. Be3 {[%clk 0:02:25]}  b6 {[%clk 0:02:55]} 11. Qd2 {[%clk 0:02:23]}  Nh7 {[%clk 0:02:55]} 12. f4 {[%clk 0:02:08]}  exf4 {[%clk 0:02:53]} 13. Bxf4 {[%clk 0:02:02]}  Bg5 {[%clk 0:02:51]} 14. g3 {[%clk 0:01:54]}  Re8 {[%clk 0:02:45]} 15. O-O-O {[%clk 0:01:52]}  Ba6 {[%clk 0:02:33]} 16. Bd3 {[%clk 0:01:08]}  Nf6 {[%clk 0:02:15]} 17. Bxg5 {[%clk 0:00:57]}  Nxd3+ {[%clk 0:02:15]} 18. Qxd3 {[%clk 0:00:57]}  hxg5 {[%clk 0:02:15]} 19. h4 {[%clk 0:00:53]}  Nd7 {[%clk 0:02:14]} 20. hxg5 {[%clk 0:00:38]}  Qxg5+ {[%clk 0:02:15]} 21. Kb1 {[%clk 0:00:24]}  Nc5 {[%clk 0:02:14]} 22. Qc2 {[%clk 0:00:23]}  Bxc4 {[%clk 0:02:10]} 23. Nf4 {[%clk 0:00:20]}  Qxg3 {[%clk 0:02:00]} 24. Nh5 {[%clk 0:00:18]}  Qf3 {[%clk 0:01:52]} 25. Rdg1 {[%clk 0:00:17]}  Bd3 {[%clk 0:01:47]} 26. Rxg7+ {[%clk 0:00:11]}  Kf8 {[%clk 0:01:47]} 27. Rhg1 {[%clk 0:00:08]}  Bxc2+ {[%clk 0:01:47]} 28. Kxc2 {[%clk 0:00:08]}  Qxh5 {[%clk 0:01:41]} 29. e5 {[%clk 0:00:07]}  Qf5+ {[%clk 0:01:34]} 30. Kc1 {[%clk 0:00:06]}  Nd3+ {[%clk 0:01:34]} 31. Kd2 {[%clk 0:00:06]}  Nxe5 {[%clk 0:01:29]} 32. Ne2 {[%clk 0:00:04]}  Qd3+ {[%clk 0:01:27]} 33. Ke1 {[%clk 0:00:04]}  Nf3+ {[%clk 0:01:26]} 34. Kf2 {[%clk 0:00:04]}  Rxe2+ {[%clk 0:01:25]} 35. Kg3 {[%clk 0:00:03]}  Nxg1+ {[%clk 0:01:23]} 36. Kg4 {[%clk 0:00:03]} 0-1


[Site "https://www.chess.com"]

[Event "Titled Tuesday Blitz June 20 Early 2023"]
[White "Corredor Castellanos, Camilo"]
[Black "Kohler, Aran"]
[WhiteFideId "4425871"]
[BlackFideId "1002856"]
[WhiteElo "1994"]
[BlackElo "2307"]
[Result "1-0"]
[Round "10"]
[TimeControl "180+2"]
[Date "2023.06.20"]
[WhiteClock "0:00:20"]
[BlackClock "0:00:32"]
[Board "122"]

1. e4 {[%clk 0:03:00]}  c6 {[%clk 0:02:59]} 2. d4 {[%clk 0:02:59]}  d5 {[%clk 0:02:59]} 3. Nc3 {[%clk 0:02:57]}  dxe4 {[%clk 0:02:59]} 4. Nxe4 {[%clk 0:02:58]}  Bf5 {[%clk 0:02:58]} 5. Ng3 {[%clk 0:02:59]}  Bg6 {[%clk 0:02:59]} 6. Nf3 {[%clk 0:02:59]}  Nd7 {[%clk 0:02:58]} 7. Be2 {[%clk 0:02:50]}  e6 {[%clk 0:02:58]} 8. O-O {[%clk 0:02:50]}  Ngf6 {[%clk 0:02:58]} 9. c3 {[%clk 0:02:40]}  Bd6 {[%clk 0:02:57]} 10. Re1 {[%clk 0:02:35]}  O-O {[%clk 0:02:56]} 11. Bf1 {[%clk 0:02:32]}  Qc7 {[%clk 0:02:54]} 12. Qb3 {[%clk 0:02:27]}  Rad8 {[%clk 0:02:54]} 13. a4 {[%clk 0:02:24]}  c5 {[%clk 0:02:53]} 14. a5 {[%clk 0:02:22]}  cxd4 {[%clk 0:02:48]} 15. cxd4 {[%clk 0:02:19]}  Nd5 {[%clk 0:02:48]} 16. Bd2 {[%clk 0:02:17]}  Qb8 {[%clk 0:02:36]} 17. Bc4 {[%clk 0:01:54]}  N7f6 {[%clk 0:02:33]} 18. Ne5 {[%clk 0:01:37]}  Rc8 {[%clk 0:02:31]} 19. Rac1 {[%clk 0:01:25]}  Rfd8 {[%clk 0:02:08]} 20. Bg5 {[%clk 0:01:23]}  h6 {[%clk 0:01:59]} 21. Bxf6 {[%clk 0:01:14]}  gxf6 {[%clk 0:01:50]} 22. Nxg6 {[%clk 0:01:14]}  fxg6 {[%clk 0:01:51]} 23. Rxe6 {[%clk 0:01:14]}  Bf8 {[%clk 0:01:41]} 24. Rce1 {[%clk 0:01:00]}  Kg7 {[%clk 0:01:36]} 25. Bxd5 {[%clk 0:01:00]}  Rxd5 {[%clk 0:01:35]} 26. Qxd5 {[%clk 0:00:59]}  Qc7 {[%clk 0:01:30]} 27. Qf3 {[%clk 0:00:53]}  Qf7 {[%clk 0:01:28]} 28. h4 {[%clk 0:00:51]}  Bb4 {[%clk 0:01:27]} 29. R1e2 {[%clk 0:00:44]}  Rc1+ {[%clk 0:01:27]} 30. Kh2 {[%clk 0:00:45]}  h5 {[%clk 0:01:26]} 31. a6 {[%clk 0:00:40]}  b6 {[%clk 0:01:23]} 32. Qb7 {[%clk 0:00:39]}  Rc7 {[%clk 0:01:22]} 33. Qe4 {[%clk 0:00:36]}  Bf8 {[%clk 0:01:09]} 34. d5 {[%clk 0:00:34]}  Rd7 {[%clk 0:01:08]} 35. Qf3 {[%clk 0:00:26]}  Bd6 {[%clk 0:01:07]} 36. Kh3 {[%clk 0:00:24]}  Be5 {[%clk 0:00:58]} 37. Qe4 {[%clk 0:00:18]}  Rd6 {[%clk 0:00:49]} 38. f4 {[%clk 0:00:18]}  Rxe6 {[%clk 0:00:48]} 39. dxe6 {[%clk 0:00:19]}  Qxe6+ {[%clk 0:00:46]} 40. Kh2 {[%clk 0:00:20]}  Qc8 {[%clk 0:00:32]} 41. fxe5 {[%clk 0:00:20]} 1-0


[Site "https://www.chess.com"]